Organisation Name,Department where exp. Incurred,Service Category Label,Supplier (Beneficiary),Purpose of Expenditure,Procurement (Merchant) Category,Purchase Date,Settlement Date,Transaction Number,Net Amount (�)
Stockport MBC,Corporate and Support Services,Central Support Costs,ADVERTISING SERVICES,Publicity and Promotion,Facilities & Management Services  ,30.04.2019,16.05.2019,GPC04190000001,272.41
Stockport MBC,Corporate and Support Services,Central Support Costs,ADVERTISING SERVICES,Publicity and Promotion,Facilities & Management Services  ,30.04.2019,16.05.2019,GPC04190000002,249.51
Stockport MBC,Services to People,Childrens & Educational Services,"GROCERY STORES, SUPERMARKETS",Catering Supplies,Catering Food & Beverages ,01.05.2019,16.05.2019,GPC04190000003,26.19
Stockport MBC,Services to People,Childrens & Educational Services,"GROCERY STORES, SUPERMARKETS",Catering Supplies,Catering Food & Beverages ,30.04.2019,16.05.2019,GPC04190000004,12.81
Stockport MBC,Services to People,Childrens & Educational Services,"GROCERY STORES, SUPERMARKETS",Catering Supplies,Catering Food & Beverages ,29.04.2019,16.05.2019,GPC04190000005,19.82
Stockport MBC,Services to People,Childrens & Educational Services,"GROCERY STORES, SUPERMARKETS",Catering Supplies,Catering Food & Beverages ,26.04.2019,16.05.2019,GPC04190000006,12.62
Stockport MBC,Services to People,Childrens & Educational Services,"GROCERY STORES, SUPERMARKETS",Catering Supplies,Catering Food & Beverages ,25.04.2019,16.05.2019,GPC04190000007,10.10
Stockport MBC,Services to People,Childrens & Educational Services,"GROCERY STORES, SUPERMARKETS",Catering Supplies,Catering Food & Beverages ,24.04.2019,16.05.2019,GPC04190000008,24.71
Stockport MBC,Services to People,Childrens & Educational Services,"GROCERY STORES, SUPERMARKETS",Catering Supplies,Catering Food & Beverages ,23.04.2019,16.05.2019,GPC04190000009,26.27
Stockport MBC,Services to People,Childrens & Educational Services,"GROCERY STORES, SUPERMARKETS",Catering Supplies,Catering Food & Beverages ,05.04.2019,16.05.2019,GPC04190000010,7.20
Stockport MBC,Services to People,Childrens & Educational Services,"GROCERY STORES, SUPERMARKETS",Catering Supplies,Catering Food & Beverages ,04.04.2019,16.05.2019,GPC04190000011,10.17
Stockport MBC,Services to People,Childrens & Educational Services,"GROCERY STORES, SUPERMARKETS",Catering Supplies,Catering Food & Beverages ,03.04.2019,16.05.2019,GPC04190000012,16.17
Stockport MBC,Services to People,Childrens & Educational Services,DIRECT MARKETING-OTHER DIRECT MARKETERS/NOT ELSEW.,Library Equipment,Education Library Books ,28.04.2019,16.05.2019,GPC04190000013,24.73
Stockport MBC,Services to People,Childrens & Educational Services,DIRECT MARKETING-OTHER DIRECT MARKETERS/NOT ELSEW.,Library Equipment,Education Library Books ,26.04.2019,16.05.2019,GPC04190000014,272.03
Stockport MBC,Services to People,Childrens & Educational Services,DIRECT MARKETING-OTHER DIRECT MARKETERS/NOT ELSEW.,Library Equipment,Education Library Books ,18.04.2019,16.05.2019,GPC04190000015,197.84
Stockport MBC,Services to People,Childrens & Educational Services,PROFESSIONAL SERVICES-NOT ELSEWHERE CLASSIFIED,Expenses and Allowances,Human Resources Training & Conferences ,29.04.2019,16.05.2019,GPC04190000016,360.00
Stockport MBC,Services to People,Childrens & Educational Services,"SCHOOLS, BUSINESS AND SECRETARIAL",Staff Training,Human Resources  ,23.04.2019,16.05.2019,GPC04190000017,306.00
Stockport MBC,Corporate and Support Services,Central Support Costs,PASSENGER RAILWAYS,Travelling Expenses,Human Resources Travel & Subsistence ,08.04.2019,16.05.2019,GPC04190000018,83.45
Stockport MBC,Corporate and Support Services,Central Support Costs,PASSENGER RAILWAYS,Travelling Expenses,Human Resources Travel & Subsistence ,08.04.2019,16.05.2019,GPC04190000019,83.45
Stockport MBC,Corporate and Support Services,Central Services to the public,"LODGING-HOTELS,MOTELS,RESORTS-NOT CLASSIFIED",Expenses and Allowances,Human Resources Travel & Subsistence ,29.04.2019,16.05.2019,GPC04190000020,200.00
Stockport MBC,Corporate and Support Services,Central Services to the public,MISCELLANEOUS PUBLISHING AND PRINTING,Furniture and Equipment,Environmental Services Technical Equipment ,29.04.2019,16.05.2019,GPC04190000021,135.48
Stockport MBC,Services to People,Childrens & Educational Services,"OFFICE, SCHOOL SUPPLY, AND STATIONERY STORES",Printing and Photocopying,Facilities & Management Services Printing ,01.05.2019,16.05.2019,GPC04190000022,32.91
Stockport MBC,Services to People,Childrens & Educational Services,MISCELLANEOUS PUBLISHING AND PRINTING,Clothing Uniforns and Laundry,Clothing  ,01.05.2019,16.05.2019,GPC04190000023,376.40
Stockport MBC,Services to People,Childrens & Educational Services,"ORGANIZATIONS, CHARITABLE AND SOCIAL SERVICES",Furniture and Equipment,Furniture & Soft Furnishings  ,29.04.2019,16.05.2019,GPC04190000024,76.67
Stockport MBC,Services to People,Childrens & Educational Services,AUTOMOBILE PARKING LOTS AND GARAGES,Travelling Expenses,Human Resources Travel & Subsistence ,28.04.2019,16.05.2019,GPC04190000025,9.50
Stockport MBC,Services to People,Childrens & Educational Services,MISCELLANEOUS AND SPECIALTY RETAIL STORES,Information and Communications Technology,Information Communication Technology  ,15.04.2019,16.05.2019,GPC04190000026,14.99
Stockport MBC,Services to People,Childrens & Educational Services,SERVICE STATIONS WITH OR WITHOUT ANCILLARY SERVICE,Fuel,Vehicle Management Fuel ,04.04.2019,16.05.2019,GPC04190000027,4.17
Stockport MBC,Services to People,Childrens & Educational Services,ELECTRONIC SALES,Information and Communications Technology,Information Communication Technology  ,03.04.2019,16.05.2019,GPC04190000028,2.50
Stockport MBC,Services to People,Childrens & Educational Services,PASSENGER RAILWAYS,Travelling Expenses,Human Resources Travel & Subsistence ,01.05.2019,16.05.2019,GPC04190000029,285.50
Stockport MBC,Services to People,Childrens & Educational Services,DIRECT MARKETING-CONTINUITY/SUBSCRIPTION MERCHANTS,Office Expenses,Facilities & Management Services  ,01.05.2019,16.05.2019,GPC04190000030,500.00
Stockport MBC,Services to People,Childrens & Educational Services,COMPUTER SOFTWARE STORES,Office Expenses,Facilities & Management Services  ,01.05.2019,16.05.2019,GPC04190000031,70.80
Stockport MBC,Services to People,Childrens & Educational Services,ADVERTISING SERVICES,Office Expenses,Facilities & Management Services  ,30.04.2019,16.05.2019,GPC04190000032,166.19
Stockport MBC,Services to People,Childrens & Educational Services,DIRECT MARKETING-CONTINUITY/SUBSCRIPTION MERCHANTS,Office Expenses,Facilities & Management Services  ,20.04.2019,16.05.2019,GPC04190000033,500.00
Stockport MBC,Services to People,Childrens & Educational Services,BOOK STORES,Publicity and Promotion,Arts & Leisure Services  ,15.04.2019,16.05.2019,GPC04190000034,-59.94
Stockport MBC,Services to People,Childrens & Educational Services,DEPARTMENT STORES,Publicity and Promotion,Arts & Leisure Services  ,10.04.2019,16.05.2019,GPC04190000035,506.50
Stockport MBC,Services to People,Childrens & Educational Services,DIRECT MARKETING-CONTINUITY/SUBSCRIPTION MERCHANTS,Office Expenses,Facilities & Management Services  ,10.04.2019,16.05.2019,GPC04190000036,500.00
Stockport MBC,Services to People,Childrens & Educational Services,DIRECT MARKETING-OTHER DIRECT MARKETERS/NOT ELSEW.,Publicity and Promotion,Arts & Leisure Services  ,08.04.2019,16.05.2019,GPC04190000037,12.46
Stockport MBC,Services to People,Childrens & Educational Services,"EQUIPMENT RENTAL&LEASING SVS, FURNTURE/TOOL RENTAL",Publicity and Promotion,Arts & Leisure Services  ,04.04.2019,16.05.2019,GPC04190000038,80.00
Stockport MBC,Services to People,Childrens & Educational Services,PASSENGER RAILWAYS,Travelling Expenses,Human Resources Travel & Subsistence ,02.04.2019,16.05.2019,GPC04190000039,194.05
Stockport MBC,Services to People,Childrens & Educational Services,AUTOMOBILE PARKING LOTS AND GARAGES,Travelling Expenses,Human Resources Travel & Subsistence ,30.04.2019,16.05.2019,GPC04190000040,25.00
Stockport MBC,Services to People,Childrens & Educational Services,AUTOMOBILE PARKING LOTS AND GARAGES,Travelling Expenses,Human Resources Travel & Subsistence ,29.04.2019,16.05.2019,GPC04190000041,11.50
Stockport MBC,Services to People,Childrens & Educational Services,AUTOMOBILE PARKING LOTS AND GARAGES,Travelling Expenses,Human Resources Travel & Subsistence ,12.04.2019,16.05.2019,GPC04190000042,14.00
Stockport MBC,Services to People,Childrens & Educational Services,PASSENGER RAILWAYS,Travelling Expenses,Human Resources Travel & Subsistence ,11.04.2019,16.05.2019,GPC04190000043,6.30
Stockport MBC,Services to People,Childrens & Educational Services,LIMOUSINES AND TAXICABS,Travelling Expenses,Human Resources Travel & Subsistence ,10.04.2019,16.05.2019,GPC04190000044,16.06
Stockport MBC,Services to People,Childrens & Educational Services,PASSENGER RAILWAYS,Travelling Expenses,Human Resources Travel & Subsistence ,09.04.2019,16.05.2019,GPC04190000045,89.10
Stockport MBC,Services to People,Childrens & Educational Services,FAST FOOD RESTAURANTS,Travelling Expenses,Human Resources Travel & Subsistence ,09.04.2019,16.05.2019,GPC04190000046,3.30
Stockport MBC,Services to People,Childrens & Educational Services,LIMOUSINES AND TAXICABS,Travelling Expenses,Human Resources Travel & Subsistence ,09.04.2019,16.05.2019,GPC04190000047,18.06
Stockport MBC,Services to Place,Central Support Costs,PASSENGER RAILWAYS,Travelling Expenses,Human Resources Travel & Subsistence ,01.05.2019,16.05.2019,GPC04190000048,6.30
Stockport MBC,Services to Place,Central Support Costs,AUTOMOBILE PARKING LOTS AND GARAGES,Travelling Expenses,Human Resources Travel & Subsistence ,25.04.2019,16.05.2019,GPC04190000049,3.40
Stockport MBC,Services to Place,Central Support Costs,AUTOMOBILE PARKING LOTS AND GARAGES,Travelling Expenses,Human Resources Travel & Subsistence ,24.04.2019,16.05.2019,GPC04190000050,14.50
Stockport MBC,Services to Place,Central Support Costs,PASSENGER RAILWAYS,Travelling Expenses,Human Resources Travel & Subsistence ,05.04.2019,16.05.2019,GPC04190000051,6.30
Stockport MBC,Services to Place,Central Support Costs,AUTOMOBILE PARKING LOTS AND GARAGES,Travelling Expenses,Human Resources Travel & Subsistence ,02.04.2019,16.05.2019,GPC04190000052,1.50
Stockport MBC,Services to People,Childrens & Educational Services,DIRECT MARKETING-OTHER DIRECT MARKETERS/NOT ELSEW.,Office Expenses,Facilities & Management Services  ,01.05.2019,16.05.2019,GPC04190000053,31.25
Stockport MBC,Services to People,Childrens & Educational Services,MISCELLANEOUS AND SPECIALTY RETAIL STORES,Office Expenses,Stationery    ,25.04.2019,16.05.2019,GPC04190000054,1.56
Stockport MBC,Services to People,Childrens & Educational Services,DIRECT MARKETING-CONTINUITY/SUBSCRIPTION MERCHANTS,Fees and Charges,"Works - Construction, Repair & Maintenance  ",13.04.2019,16.05.2019,GPC04190000055,7.99
Stockport MBC,Services to People,Childrens & Educational Services,"COLLEGES, UNIV, PRO SCHOOLS, JUNIOR COLLEGES",Staff Training,Human Resources  ,05.04.2019,16.05.2019,GPC04190000056,75.00
Stockport MBC,Services to People,Childrens & Educational Services,"GROCERY STORES, SUPERMARKETS",Catering Supplies,Catering Food & Beverages ,01.05.2019,16.05.2019,GPC04190000057,33.59
Stockport MBC,Services to People,Childrens & Educational Services,"GROCERY STORES, SUPERMARKETS",Furniture and Equipment,Environmental Services Technical Equipment ,30.04.2019,16.05.2019,GPC04190000058,48.03
Stockport MBC,Services to People,Childrens & Educational Services,"GROCERY STORES, SUPERMARKETS",Furniture and Equipment,Environmental Services Technical Equipment ,24.04.2019,16.05.2019,GPC04190000059,22.18
Stockport MBC,Services to People,Childrens & Educational Services,"GROCERY STORES, SUPERMARKETS",Catering Supplies,Catering Food & Beverages ,24.04.2019,16.05.2019,GPC04190000060,25.69
Stockport MBC,Services to People,Childrens & Educational Services,COMPUTER SOFTWARE STORES,Furniture and Equipment,Environmental Services Technical Equipment ,21.04.2019,16.05.2019,GPC04190000061,119.21
Stockport MBC,Services to People,Childrens & Educational Services,"GROCERY STORES, SUPERMARKETS",Catering Supplies,Catering Food & Beverages ,05.04.2019,16.05.2019,GPC04190000062,8.40
Stockport MBC,Services to People,Childrens & Educational Services,"THEATRICAL PRODUCERS(EXCL MOTION PIX),TICKET AGNCY",Fees and Charges,Education  ,03.04.2019,16.05.2019,GPC04190000063,10.75
Stockport MBC,Services to People,Childrens & Educational Services,"GROCERY STORES, SUPERMARKETS",Catering Supplies,Catering Food & Beverages ,02.04.2019,16.05.2019,GPC04190000064,30.06
Stockport MBC,Services to People,Childrens & Educational Services,"GROCERY STORES, SUPERMARKETS",Catering Supplies,Catering Food & Beverages ,02.04.2019,16.05.2019,GPC04190000065,58.22
Stockport MBC,Corporate and Support Services,Corporate & Democratic Core,"LODGING-HOTELS,MOTELS,RESORTS-NOT CLASSIFIED",Expenses and Allowances,Catering  ,29.04.2019,16.05.2019,GPC04190000066,100.00
Stockport MBC,Corporate and Support Services,Corporate & Democratic Core,MISCELLANEOUS AND SPECIALTY RETAIL STORES,Furniture and Equipment,Environmental Services Technical Equipment ,15.04.2019,16.05.2019,GPC04190000067,17.98
Stockport MBC,Corporate and Support Services,Corporate & Democratic Core,MISCELLANEOUS AND SPECIALTY RETAIL STORES,Furniture and Equipment,Environmental Services Technical Equipment ,15.04.2019,16.05.2019,GPC04190000068,35.96
Stockport MBC,Corporate and Support Services,Central Support Costs,MISCELLANEOUS AND SPECIALTY RETAIL STORES,Library Equipment,Education Library Books ,18.04.2019,16.05.2019,GPC04190000069,69.80
Stockport MBC,Corporate and Support Services,Central Support Costs,INDUSTRIAL SUPPLIES NOT ELSEWHERE CLASSIFIED,Furniture and Equipment,Environmental Services Technical Equipment ,09.04.2019,16.05.2019,GPC04190000070,122.40
Stockport MBC,Services to People,Public Health,PASSENGER RAILWAYS,Travelling Expenses,Human Resources Travel & Subsistence ,24.04.2019,16.05.2019,GPC04190000071,216.00
Stockport MBC,Services to People,Public Health,BUSINESS SERVICES-NOT ELSEWHERE CLASSIFIED,Expenses and Allowances,Human Resources Training & Conferences ,10.04.2019,16.05.2019,GPC04190000072,45.00
Stockport MBC,Services to People,Public Health,"HEALTH PRACTITIONERS, MEDICAL SRVCS-NOT ELSEWHERE",Fees and Charges,UNCLASSIFIED  ,09.04.2019,16.05.2019,GPC04190000073,260.00
Stockport MBC,Corporate and Support Services,Cultural & Related Services,DIRECT MARKETING-OTHER DIRECT MARKETERS/NOT ELSEW.,Furniture and Equipment,Furniture & Soft Furnishings  ,27.04.2019,16.05.2019,GPC04190000074,8.00
Stockport MBC,Corporate and Support Services,Cultural & Related Services,MISCELLANEOUS AND SPECIALTY RETAIL STORES,Furniture and Equipment,Furniture & Soft Furnishings  ,04.04.2019,16.05.2019,GPC04190000075,19.38
Stockport MBC,Corporate and Support Services,Cultural & Related Services,BOOK STORES,Furniture and Equipment,Furniture & Soft Furnishings  ,04.04.2019,16.05.2019,GPC04190000076,11.98
Stockport MBC,Corporate and Support Services,Cultural & Related Services,"GROCERY STORES, SUPERMARKETS",Publicity and Promotion,Arts & Leisure Services  ,05.04.2019,16.05.2019,GPC04190000077,14.18
Stockport MBC,Services to People,Childrens & Educational Services,DIRECT MARKETING-CONTINUITY/SUBSCRIPTION MERCHANTS,Furniture and Equipment,Furniture & Soft Furnishings  ,18.04.2019,16.05.2019,GPC04190000078,7.99
Stockport MBC,Services to People,Childrens & Educational Services,CATERERS,Office Expenses,Stationery    ,11.04.2019,16.05.2019,GPC04190000079,25.16
Stockport MBC,Services to People,Childrens & Educational Services,CATERERS,Office Expenses,Stationery    ,11.04.2019,16.05.2019,GPC04190000080,10.76
Stockport MBC,Services to People,Childrens & Educational Services,CATERERS,Office Expenses,Stationery    ,11.04.2019,16.05.2019,GPC04190000081,25.16
Stockport MBC,Services to People,Adult Social Care,TRAVELODGE,Travelling Expenses,Human Resources Travel & Subsistence ,08.04.2019,16.05.2019,GPC04190000082,-173.45
Stockport MBC,Services to People,Childrens & Educational Services,BOOK STORES,Furniture and Equipment,Environmental Services Technical Equipment ,30.04.2019,16.05.2019,GPC04190000083,32.25
Stockport MBC,Services to People,Childrens & Educational Services,MISCELLANEOUS AND SPECIALTY RETAIL STORES,Furniture and Equipment,Environmental Services Technical Equipment ,23.04.2019,16.05.2019,GPC04190000084,-25.12
Stockport MBC,Services to People,Childrens & Educational Services,HOME SUPPLY WAREHOUSE STORES,Furniture and Equipment,Environmental Services Technical Equipment ,12.04.2019,16.05.2019,GPC04190000085,-12.04
Stockport MBC,Services to People,Childrens & Educational Services,HOME SUPPLY WAREHOUSE STORES,Furniture and Equipment,Environmental Services Technical Equipment ,05.04.2019,16.05.2019,GPC04190000086,159.28
Stockport MBC,Services to People,Childrens & Educational Services,PASSENGER RAILWAYS,Travelling Expenses,Human Resources Travel & Subsistence ,29.04.2019,16.05.2019,GPC04190000087,105.50
Stockport MBC,Services to People,Childrens & Educational Services,"GROCERY STORES, SUPERMARKETS",Catering Supplies,Catering Food & Beverages ,24.04.2019,16.05.2019,GPC04190000088,26.00
Stockport MBC,Services to People,Childrens & Educational Services,POSTAL SERVICES-GOVERNMENT ONLY,Office Expenses,Mail Services�  ,05.04.2019,16.05.2019,GPC04190000089,12.19
Stockport MBC,Services to People,Adult Social Care,"DRAPERY, UPOLSTERY, AND WINDOW COVERINGS STORES",Fixtures and Fittings,Facilities & Management Services  ,17.04.2019,16.05.2019,GPC04190000090,37.50
Stockport MBC,Services to People,Adult Social Care,"BUILDING MATERIALS, LUMBER STORES",Fixtures and Fittings,Facilities & Management Services  ,17.04.2019,16.05.2019,GPC04190000091,11.67
Stockport MBC,Services to People,Adult Social Care,"BUILDING MATERIALS, LUMBER STORES",Fixtures and Fittings,Facilities & Management Services  ,17.04.2019,16.05.2019,GPC04190000092,94.00
Stockport MBC,Services to People,Childrens & Educational Services,PASSENGER RAILWAYS,Travelling Expenses,Human Resources Travel & Subsistence ,01.05.2019,16.05.2019,GPC04190000093,200.30
Stockport MBC,Services to People,Childrens & Educational Services,PASSENGER RAILWAYS,Travelling Expenses,Human Resources Travel & Subsistence ,26.04.2019,16.05.2019,GPC04190000094,192.15
Stockport MBC,Services to People,Childrens & Educational Services,PASSENGER RAILWAYS,Travelling Expenses,Human Resources Travel & Subsistence ,26.04.2019,16.05.2019,GPC04190000095,59.45
Stockport MBC,Services to People,Childrens & Educational Services,PASSENGER RAILWAYS,Care Payments,Social Community Care Supplies & Services  ,25.04.2019,16.05.2019,GPC04190000096,24.55
Stockport MBC,Services to People,Childrens & Educational Services,PASSENGER RAILWAYS,Travelling Expenses,Human Resources Travel & Subsistence ,24.04.2019,16.05.2019,GPC04190000097,29.25
Stockport MBC,Services to People,Childrens & Educational Services,PASSENGER RAILWAYS,Care Payments,Social Community Care Supplies & Services  ,16.04.2019,16.05.2019,GPC04190000098,224.70
Stockport MBC,Services to People,Childrens & Educational Services,PASSENGER RAILWAYS,Travelling Expenses,Human Resources Travel & Subsistence ,15.04.2019,16.05.2019,GPC04190000099,25.45
Stockport MBC,Services to People,Childrens & Educational Services,"LODGING-HOTELS,MOTELS,RESORTS-NOT CLASSIFIED",Third party payments - Private/Voluntary Sector,Social Community Care Supplies & Services  ,12.04.2019,16.05.2019,GPC04190000100,96.00
Stockport MBC,Services to People,Childrens & Educational Services,PASSENGER RAILWAYS,Care Payments,Social Community Care Supplies & Services  ,12.04.2019,16.05.2019,GPC04190000101,11.15
Stockport MBC,Services to People,Childrens & Educational Services,PASSENGER RAILWAYS,Travelling Expenses,Human Resources Travel & Subsistence ,12.04.2019,16.05.2019,GPC04190000102,69.70
Stockport MBC,Services to People,Childrens & Educational Services,PASSENGER RAILWAYS,Care Payments,Social Community Care Supplies & Services  ,12.04.2019,16.05.2019,GPC04190000103,24.55
Stockport MBC,Services to People,Childrens & Educational Services,BUS LINES,Care Payments,Social Community Care Supplies & Services  ,10.04.2019,16.05.2019,GPC04190000104,40.30
Stockport MBC,Services to People,Childrens & Educational Services,BUS LINES,Care Payments,Social Community Care Supplies & Services  ,10.04.2019,16.05.2019,GPC04190000105,244.50
Stockport MBC,Services to People,Childrens & Educational Services,PASSENGER RAILWAYS,Care Payments,Social Community Care Supplies & Services  ,09.04.2019,16.05.2019,GPC04190000106,17.45
Stockport MBC,Services to People,Childrens & Educational Services,TRAVELODGE,Care Payments,Social Community Care Supplies & Services  ,09.04.2019,16.05.2019,GPC04190000107,233.00
Stockport MBC,Services to People,Childrens & Educational Services,PASSENGER RAILWAYS,Care Payments,Social Community Care Supplies & Services  ,05.04.2019,16.05.2019,GPC04190000108,24.55
Stockport MBC,Services to People,Childrens & Educational Services,PREMIER INN,Care Payments,Social Community Care Supplies & Services  ,04.04.2019,16.05.2019,GPC04190000109,127.00
Stockport MBC,Services to People,Childrens & Educational Services,DISCOUNT STORES,Care Payments,Social Community Care Supplies & Services  ,05.04.2019,16.05.2019,GPC04190000110,161.95
Stockport MBC,Services to People,Childrens & Educational Services,"THEATRICAL PRODUCERS(EXCL MOTION PIX),TICKET AGNCY",Travelling Expenses,Human Resources Travel & Subsistence ,04.04.2019,16.05.2019,GPC04190000111,198.00
Stockport MBC,Services to People,Childrens & Educational Services,"THEATRICAL PRODUCERS(EXCL MOTION PIX),TICKET AGNCY",Travelling Expenses,Human Resources Travel & Subsistence ,04.04.2019,16.05.2019,GPC04190000112,27.05
Stockport MBC,Services to People,Childrens & Educational Services,"THEATRICAL PRODUCERS(EXCL MOTION PIX),TICKET AGNCY",Travelling Expenses,Human Resources Travel & Subsistence ,04.04.2019,16.05.2019,GPC04190000113,445.50
Stockport MBC,Services to People,Childrens & Educational Services,"THEATRICAL PRODUCERS(EXCL MOTION PIX),TICKET AGNCY",Travelling Expenses,Human Resources Travel & Subsistence ,04.04.2019,16.05.2019,GPC04190000114,97.50
Stockport MBC,Services to People,Childrens & Educational Services,"THEATRICAL PRODUCERS(EXCL MOTION PIX),TICKET AGNCY",Travelling Expenses,Human Resources Travel & Subsistence ,04.04.2019,16.05.2019,GPC04190000115,126.50
Stockport MBC,Services to People,Childrens & Educational Services,"THEATRICAL PRODUCERS(EXCL MOTION PIX),TICKET AGNCY",Travelling Expenses,Human Resources Travel & Subsistence ,04.04.2019,16.05.2019,GPC04190000116,4.15
Stockport MBC,Services to People,Childrens & Educational Services,"THEATRICAL PRODUCERS(EXCL MOTION PIX),TICKET AGNCY",Travelling Expenses,Human Resources Travel & Subsistence ,04.04.2019,16.05.2019,GPC04190000117,3.85
Stockport MBC,Services to People,Childrens & Educational Services,"THEATRICAL PRODUCERS(EXCL MOTION PIX),TICKET AGNCY",Travelling Expenses,Human Resources Travel & Subsistence ,04.04.2019,16.05.2019,GPC04190000118,453.70
Stockport MBC,Services to People,Childrens & Educational Services,"THEATRICAL PRODUCERS(EXCL MOTION PIX),TICKET AGNCY",Travelling Expenses,Human Resources Travel & Subsistence ,04.04.2019,16.05.2019,GPC04190000119,19.85
Stockport MBC,Services to People,Childrens & Educational Services,PASSENGER RAILWAYS,Care Payments,Social Community Care Supplies & Services  ,04.04.2019,16.05.2019,GPC04190000120,24.55
Stockport MBC,Services to People,Childrens & Educational Services,PREMIER INN,Staff Training,Human Resources  ,03.04.2019,16.05.2019,GPC04190000121,222.00
Stockport MBC,Services to People,Childrens & Educational Services,PREMIER INN,Staff Training,Human Resources  ,03.04.2019,16.05.2019,GPC04190000122,172.50
Stockport MBC,Services to People,Childrens & Educational Services,PASSENGER RAILWAYS,Travelling Expenses,Human Resources Travel & Subsistence ,03.04.2019,16.05.2019,GPC04190000123,66.70
Stockport MBC,Services to People,Childrens & Educational Services,PASSENGER RAILWAYS,Travelling Expenses,Human Resources Travel & Subsistence ,03.04.2019,16.05.2019,GPC04190000124,47.35
Stockport MBC,Services to People,Childrens & Educational Services,TRAVELODGE,Care Payments,Social Community Care Supplies & Services  ,03.04.2019,16.05.2019,GPC04190000125,96.50
Stockport MBC,Services to People,Adult Social Care,FINES,Legal Fees,Legal Services  ,08.04.2019,16.05.2019,GPC04190000126,225.00
Stockport MBC,Services to People,Adult Social Care,FINES,Legal Fees,Legal Services  ,03.04.2019,16.05.2019,GPC04190000127,75.00
Stockport MBC,Services to People,Childrens & Educational Services,"GROCERY STORES, SUPERMARKETS",Catering Supplies,Catering Food & Beverages ,01.05.2019,16.05.2019,GPC04190000128,18.79
Stockport MBC,Services to People,Childrens & Educational Services,"GROCERY STORES, SUPERMARKETS",Catering Supplies,Catering Food & Beverages ,25.04.2019,16.05.2019,GPC04190000129,49.13
Stockport MBC,Services to People,Childrens & Educational Services,"GROCERY STORES, SUPERMARKETS",Catering Supplies,Catering Food & Beverages ,04.04.2019,16.05.2019,GPC04190000130,43.97
Stockport MBC,Services to People,Childrens & Educational Services,PASSENGER RAILWAYS,Travelling Expenses,Human Resources Travel & Subsistence ,24.04.2019,16.05.2019,GPC04190000131,81.00
Stockport MBC,Services to People,Childrens & Educational Services,BOOK STORES,Furniture and Equipment,Environmental Services Technical Equipment ,25.04.2019,16.05.2019,GPC04190000132,16.02
Stockport MBC,Services to People,Childrens & Educational Services,DIRECT MARKETING-OTHER DIRECT MARKETERS/NOT ELSEW.,Library Equipment,Education Library Books ,18.04.2019,16.05.2019,GPC04190000133,23.11
Stockport MBC,Services to People,Childrens & Educational Services,"BOOKS,PERIODICALS AND NEWSPAPERS",Library Equipment,Education Library Books ,17.04.2019,16.05.2019,GPC04190000134,118.80
Stockport MBC,Services to People,Childrens & Educational Services,BUSINESS SERVICES-NOT ELSEWHERE CLASSIFIED,Expenses and Allowances,Human Resources Training & Conferences ,17.04.2019,16.05.2019,GPC04190000135,189.00
Stockport MBC,Services to People,Childrens & Educational Services,DIRECT MARKETING-OTHER DIRECT MARKETERS/NOT ELSEW.,Library Equipment,Education Library Books ,15.04.2019,16.05.2019,GPC04190000136,20.69
Stockport MBC,Services to People,Childrens & Educational Services,MISCELLANEOUS AND SPECIALTY RETAIL STORES,Library Equipment,Education Library Books ,11.04.2019,16.05.2019,GPC04190000137,22.50
Stockport MBC,Services to People,Childrens & Educational Services,PASSENGER RAILWAYS,Travelling Expenses,Human Resources Travel & Subsistence ,08.04.2019,16.05.2019,GPC04190000138,107.60
Stockport MBC,Services to People,Childrens & Educational Services,"LODGING-HOTELS,MOTELS,RESORTS-NOT CLASSIFIED",Expenses and Allowances,Human Resources Training & Conferences ,08.04.2019,16.05.2019,GPC04190000139,10.00
Stockport MBC,Services to People,Childrens & Educational Services,DIRECT MARKETING-OTHER DIRECT MARKETERS/NOT ELSEW.,Library Equipment,Education Library Books ,19.04.2019,16.05.2019,GPC04190000140,170.03
Stockport MBC,Services to People,Childrens & Educational Services,DIRECT MARKETING-OTHER DIRECT MARKETERS/NOT ELSEW.,Library Equipment,Education Library Books ,18.04.2019,16.05.2019,GPC04190000141,170.03
Stockport MBC,Services to People,Childrens & Educational Services,"THEATRICAL PRODUCERS(EXCL MOTION PIX),TICKET AGNCY",Travelling Expenses,Human Resources Travel & Subsistence ,18.04.2019,16.05.2019,GPC04190000142,351.50
Stockport MBC,Services to People,Childrens & Educational Services,DIRECT MARKETING-OTHER DIRECT MARKETERS/NOT ELSEW.,Library Equipment,Education Library Books ,18.04.2019,16.05.2019,GPC04190000143,194.32
Stockport MBC,Services to People,Childrens & Educational Services,DIRECT MARKETING-OTHER DIRECT MARKETERS/NOT ELSEW.,Library Equipment,Education Library Books ,18.04.2019,16.05.2019,GPC04190000144,194.32
Stockport MBC,Services to People,Childrens & Educational Services,PASSENGER RAILWAYS,Travelling Expenses,Human Resources Travel & Subsistence ,05.04.2019,16.05.2019,GPC04190000145,164.50
Stockport MBC,Services to People,Childrens & Educational Services,PASSENGER RAILWAYS,Travelling Expenses,Human Resources Travel & Subsistence ,05.04.2019,16.05.2019,GPC04190000146,42.50
Stockport MBC,Services to People,Childrens & Educational Services,PASSENGER RAILWAYS,Travelling Expenses,Human Resources Travel & Subsistence ,05.04.2019,16.05.2019,GPC04190000147,45.00
Stockport MBC,Services to Place,Central Support Costs,PASSENGER RAILWAYS,Travelling Expenses,Human Resources Travel & Subsistence ,16.04.2019,16.05.2019,GPC04190000148,102.20
Stockport MBC,Services to Place,Central Support Costs,PASSENGER RAILWAYS,Travelling Expenses,Human Resources Travel & Subsistence ,16.04.2019,16.05.2019,GPC04190000149,84.70
Stockport MBC,Services to People,Childrens & Educational Services,"GROCERY STORES, SUPERMARKETS",Furniture and Equipment,Furniture & Soft Furnishings  ,01.05.2019,16.05.2019,GPC04190000150,14.17
Stockport MBC,Services to People,Childrens & Educational Services,"GROCERY STORES, SUPERMARKETS",Furniture and Equipment,Furniture & Soft Furnishings  ,25.04.2019,16.05.2019,GPC04190000151,21.70
Stockport MBC,Services to People,Childrens & Educational Services,DISCOUNT STORES,Furniture and Equipment,Furniture & Soft Furnishings  ,03.04.2019,16.05.2019,GPC04190000152,9.48
Stockport MBC,Services to People,Childrens & Educational Services,"GROCERY STORES, SUPERMARKETS",Catering Supplies,Catering Food & Beverages ,29.04.2019,16.05.2019,GPC04190000153,40.71
Stockport MBC,Services to People,Childrens & Educational Services,"GROCERY STORES, SUPERMARKETS",Catering Supplies,Catering Food & Beverages ,23.04.2019,16.05.2019,GPC04190000154,66.71
Stockport MBC,Services to People,Childrens & Educational Services,"GROCERY STORES, SUPERMARKETS",Catering Supplies,Catering Food & Beverages ,04.04.2019,16.05.2019,GPC04190000155,13.62
Stockport MBC,Services to People,Childrens & Educational Services,RECORD SHOPS,Publicity and Promotion,Arts & Leisure Services  ,29.04.2019,16.05.2019,GPC04190000156,3.99
Stockport MBC,Services to People,Childrens & Educational Services,"GROCERY STORES, SUPERMARKETS",Catering Supplies,Catering Food & Beverages ,28.04.2019,16.05.2019,GPC04190000157,202.87
Stockport MBC,Services to People,Childrens & Educational Services,DISCOUNT STORES,Publicity and Promotion,Arts & Leisure Services  ,27.04.2019,16.05.2019,GPC04190000158,149.00
Stockport MBC,Services to People,Childrens & Educational Services,"EATING PLACES, RESTAURANTS",Publicity and Promotion,Arts & Leisure Services  ,26.04.2019,16.05.2019,GPC04190000159,83.34
Stockport MBC,Services to People,Childrens & Educational Services,"GROCERY STORES, SUPERMARKETS",Catering Supplies,Catering Food & Beverages ,26.04.2019,16.05.2019,GPC04190000160,209.91
Stockport MBC,Services to People,Childrens & Educational Services,"BUYING/SHOPPING CLUBS, SERVICES",Publicity and Promotion,Arts & Leisure Services  ,25.04.2019,16.05.2019,GPC04190000161,39.00
Stockport MBC,Services to People,Childrens & Educational Services,"EATING PLACES, RESTAURANTS",Catering Supplies,Catering Food & Beverages ,21.04.2019,16.05.2019,GPC04190000162,51.47
Stockport MBC,Services to People,Childrens & Educational Services,"GROCERY STORES, SUPERMARKETS",Catering Supplies,Catering Food & Beverages ,20.04.2019,16.05.2019,GPC04190000163,187.39
Stockport MBC,Services to People,Childrens & Educational Services,"GROCERY STORES, SUPERMARKETS",Catering Supplies,Catering Food & Beverages ,19.04.2019,16.05.2019,GPC04190000164,203.37
Stockport MBC,Services to People,Childrens & Educational Services,"GROCERY STORES, SUPERMARKETS",Care Payments,Social Community Care Supplies & Services  ,17.04.2019,16.05.2019,GPC04190000165,49.00
Stockport MBC,Services to People,Childrens & Educational Services,"GROCERY STORES, SUPERMARKETS",Catering Supplies,Catering Food & Beverages ,12.04.2019,16.05.2019,GPC04190000166,177.44
Stockport MBC,Services to People,Childrens & Educational Services,"CLUBS-CNTRY,MBRSHIP(ATHLET,REC,SPRTS,PRIVATE GOLF",Publicity and Promotion,Arts & Leisure Services  ,13.04.2019,16.05.2019,GPC04190000167,55.00
Stockport MBC,Services to People,Childrens & Educational Services,"CABLE, SATELLITE, OTHER PAY TELEVISION, RADIO SVCS",Publicity and Promotion,Arts & Leisure Services  ,10.04.2019,16.05.2019,GPC04190000168,9.99
Stockport MBC,Services to People,Childrens & Educational Services,"GROCERY STORES, SUPERMARKETS",Catering Supplies,Catering Food & Beverages ,05.04.2019,16.05.2019,GPC04190000169,124.69
Stockport MBC,Services to People,Childrens & Educational Services,FAST FOOD RESTAURANTS,Catering Supplies,Catering Food & Beverages ,06.04.2019,16.05.2019,GPC04190000170,87.50
Stockport MBC,Services to People,Childrens & Educational Services,"GROCERY STORES, SUPERMARKETS",Catering Supplies,Catering Food & Beverages ,06.04.2019,16.05.2019,GPC04190000171,169.13
Stockport MBC,Services to People,Childrens & Educational Services,"BUYING/SHOPPING CLUBS, SERVICES",Publicity and Promotion,Arts & Leisure Services  ,04.04.2019,16.05.2019,GPC04190000172,10.00
Stockport MBC,Services to People,Childrens & Educational Services,CAMPGROUNDS AND TRAILER PARKS,Publicity and Promotion,Arts & Leisure Services  ,03.04.2019,16.05.2019,GPC04190000173,692.75
Stockport MBC,Services to People,Childrens & Educational Services,CAMPGROUNDS AND TRAILER PARKS,Publicity and Promotion,Arts & Leisure Services  ,03.04.2019,16.05.2019,GPC04190000174,365.00
Stockport MBC,Services to People,Childrens & Educational Services,"BUYING/SHOPPING CLUBS, SERVICES",Publicity and Promotion,Arts & Leisure Services  ,04.04.2019,16.05.2019,GPC04190000175,24.50
Stockport MBC,Services to People,Childrens & Educational Services,RECREATION SERVICES (NOT ELSEWHERE CLASSIFIED),Publicity and Promotion,Arts & Leisure Services  ,04.04.2019,16.05.2019,GPC04190000176,68.00
Stockport MBC,Services to People,Childrens & Educational Services,OTHER SERVICES (NOT ELSEWHERE CLASSIFIED),Publicity and Promotion,Arts & Leisure Services  ,04.04.2019,16.05.2019,GPC04190000177,52.00
Stockport MBC,Services to People,Childrens & Educational Services,"CLUBS-CNTRY,MBRSHIP(ATHLET,REC,SPRTS,PRIVATE GOLF",Publicity and Promotion,Arts & Leisure Services  ,04.04.2019,16.05.2019,GPC04190000178,60.00
Stockport MBC,Corporate and Support Services,Cultural & Related Services,"GROCERY STORES, SUPERMARKETS",Expenses and Allowances,Catering  ,12.04.2019,16.05.2019,GPC04190000179,6.20
Stockport MBC,Corporate and Support Services,Cultural & Related Services,GOVERNMENT SERVICES-NOT ELSEWHERE CLASSIFIED,Staff Training,Human Resources  ,15.04.2019,16.05.2019,GPC04190000180,25.00
Stockport MBC,Corporate and Support Services,Cultural & Related Services,"GROCERY STORES, SUPERMARKETS",Expenses and Allowances,Catering  ,12.04.2019,16.05.2019,GPC04190000181,2.93
Stockport MBC,Corporate and Support Services,Cultural & Related Services,"GROCERY STORES, SUPERMARKETS",Expenses and Allowances,Catering  ,13.04.2019,16.05.2019,GPC04190000182,5.00
Stockport MBC,Corporate and Support Services,Cultural & Related Services,"GROCERY STORES, SUPERMARKETS",Expenses and Allowances,Catering  ,11.04.2019,16.05.2019,GPC04190000183,2.90
Stockport MBC,Corporate and Support Services,Cultural & Related Services,CHEMICALS/ALLIED PRODUCTS NOT ELSEWHERE CLASSIFIED,Expenses and Allowances,Catering  ,08.04.2019,16.05.2019,GPC04190000184,15.00
Stockport MBC,Services to People,Adult Social Care,PASSENGER RAILWAYS,Travelling Expenses,Human Resources Travel & Subsistence ,25.04.2019,16.05.2019,GPC04190000185,6.30
Stockport MBC,Services to People,Adult Social Care,AUTOMOBILE PARKING LOTS AND GARAGES,Travelling Expenses,Human Resources Travel & Subsistence ,09.04.2019,16.05.2019,GPC04190000186,3.50
Stockport MBC,Services to People,Adult Social Care,AUTOMOBILE PARKING LOTS AND GARAGES,Travelling Expenses,Human Resources Travel & Subsistence ,01.04.2019,16.05.2019,GPC04190000187,3.50
Stockport MBC,Services to People,Childrens & Educational Services,MISCELLANEOUS AND SPECIALTY RETAIL STORES,Furniture and Equipment,Environmental Services Technical Equipment ,01.05.2019,16.05.2019,GPC04190000188,9.19
Stockport MBC,Services to People,Childrens & Educational Services,"COLLEGES, UNIV, PRO SCHOOLS, JUNIOR COLLEGES",Staff Training,Human Resources  ,29.04.2019,16.05.2019,GPC04190000189,50.00
Stockport MBC,Services to People,Childrens & Educational Services,"GROCERY STORES, SUPERMARKETS",Catering Supplies,Catering Food & Beverages ,29.04.2019,16.05.2019,GPC04190000190,16.40
Stockport MBC,Services to People,Childrens & Educational Services,MISCELLANEOUS AND SPECIALTY RETAIL STORES,Furniture and Equipment,Environmental Services Technical Equipment ,28.04.2019,16.05.2019,GPC04190000191,29.53
Stockport MBC,Services to People,Childrens & Educational Services,MISCELLANEOUS AND SPECIALTY RETAIL STORES,Furniture and Equipment,Environmental Services Technical Equipment ,26.04.2019,16.05.2019,GPC04190000192,25.50
Stockport MBC,Services to People,Childrens & Educational Services,DIRECT MARKETING-OTHER DIRECT MARKETERS/NOT ELSEW.,Furniture and Equipment,Environmental Services Technical Equipment ,28.04.2019,16.05.2019,GPC04190000193,8.89
Stockport MBC,Services to People,Childrens & Educational Services,DIRECT MARKETING-OTHER DIRECT MARKETERS/NOT ELSEW.,Furniture and Equipment,Environmental Services Technical Equipment ,28.04.2019,16.05.2019,GPC04190000194,8.23
Stockport MBC,Services to People,Childrens & Educational Services,FLOOR COVERING STORES,Furniture and Equipment,Environmental Services Technical Equipment ,25.04.2019,16.05.2019,GPC04190000195,16.99
Stockport MBC,Services to People,Childrens & Educational Services,"BUILDING MATERIALS, LUMBER STORES",Furniture and Equipment,Environmental Services Technical Equipment ,25.04.2019,16.05.2019,GPC04190000196,31.00
Stockport MBC,Services to People,Childrens & Educational Services,MISCELLANEOUS AND SPECIALTY RETAIL STORES,Furniture and Equipment,Environmental Services Technical Equipment ,12.04.2019,16.05.2019,GPC04190000197,-10.98
Stockport MBC,Services to People,Childrens & Educational Services,MISCELLANEOUS AND SPECIALTY RETAIL STORES,Furniture and Equipment,Environmental Services Technical Equipment ,05.04.2019,16.05.2019,GPC04190000198,10.98
Stockport MBC,Corporate and Support Services,Planning Services,LIMOUSINES AND TAXICABS,Publicity and Promotion,Arts & Leisure Services  ,26.04.2019,16.05.2019,GPC04190000199,12.50
Stockport MBC,Corporate and Support Services,Planning Services,LIMOUSINES AND TAXICABS,Publicity and Promotion,Arts & Leisure Services  ,26.04.2019,16.05.2019,GPC04190000200,8.50
Stockport MBC,Corporate and Support Services,Planning Services,BOOK STORES,Furniture and Equipment,Environmental Services Technical Equipment ,23.04.2019,16.05.2019,GPC04190000201,45.98
Stockport MBC,Corporate and Support Services,Planning Services,MISCELLANEOUS AND SPECIALTY RETAIL STORES,Furniture and Equipment,Environmental Services Technical Equipment ,22.04.2019,16.05.2019,GPC04190000202,14.17
Stockport MBC,Corporate and Support Services,Planning Services,BOOK STORES,Furniture and Equipment,Environmental Services Technical Equipment ,20.04.2019,16.05.2019,GPC04190000203,87.80
Stockport MBC,Corporate and Support Services,Central Support Costs,DIRECT MARKETING-CONTINUITY/SUBSCRIPTION MERCHANTS,Information and Communications Technology,Information Communication Technology  ,30.04.2019,16.05.2019,GPC04190000204,5.02
Stockport MBC,Corporate and Support Services,Central Support Costs,"COMPUTERS, COMPUTER PERIPHERAL EQUIPMENT, SOFTWARE",Information and Communications Technology,Information Communication Technology  ,28.04.2019,16.05.2019,GPC04190000205,163.89
Stockport MBC,Corporate and Support Services,Central Support Costs,"DURABLE GOODS, NOT ELSEWHERE CLASSIFIED",Furniture and Equipment,Environmental Services Technical Equipment ,25.04.2019,16.05.2019,GPC04190000206,7.79
Stockport MBC,Corporate and Support Services,Central Support Costs,COMPUTER NETWORK/INFORMATION SERVICES,Information and Communications Technology,Information Communication Technology  ,24.04.2019,16.05.2019,GPC04190000207,12.47
Stockport MBC,Corporate and Support Services,Central Support Costs,COMPUTER NETWORK/INFORMATION SERVICES,Information and Communications Technology,Information Communication Technology  ,24.04.2019,16.05.2019,GPC04190000208,9.39
Stockport MBC,Corporate and Support Services,Central Support Costs,COMPUTER NETWORK/INFORMATION SERVICES,Information and Communications Technology,Information Communication Technology  ,23.04.2019,16.05.2019,GPC04190000209,8.19
Stockport MBC,Corporate and Support Services,Central Support Costs,MISCELLANEOUS AND SPECIALTY RETAIL STORES,Library Equipment,Education Library Books ,15.04.2019,16.05.2019,GPC04190000210,28.57
Stockport MBC,Corporate and Support Services,Central Support Costs,PASSENGER RAILWAYS,Travelling Expenses,Human Resources Travel & Subsistence ,15.04.2019,16.05.2019,GPC04190000211,12.60
Stockport MBC,Corporate and Support Services,Central Support Costs,COMPUTER SOFTWARE STORES,Information and Communications Technology,Information Communication Technology  ,13.04.2019,16.05.2019,GPC04190000212,9.47
Stockport MBC,Corporate and Support Services,Central Support Costs,CAMERA AND PHOTOGRAPHIC SUPPLY STORES,Furniture and Equipment,Environmental Services Technical Equipment ,10.04.2019,16.05.2019,GPC04190000213,4.79
Stockport MBC,Corporate and Support Services,Central Support Costs,COMPUTER SOFTWARE STORES,Information and Communications Technology,Information Communication Technology  ,10.04.2019,16.05.2019,GPC04190000214,780.17
Stockport MBC,Corporate and Support Services,Central Support Costs,COMPUTER SOFTWARE STORES,Information and Communications Technology,Information Communication Technology  ,05.04.2019,16.05.2019,GPC04190000215,158.31
Stockport MBC,Corporate and Support Services,Central Support Costs,BUSINESS SERVICES-NOT ELSEWHERE CLASSIFIED,Information and Communications Technology,Information Communication Technology  ,03.04.2019,16.05.2019,GPC04190000216,925.90
Stockport MBC,Corporate and Support Services,Central Support Costs,COMPUTER NETWORK/INFORMATION SERVICES,Information and Communications Technology,Information Communication Technology  ,02.04.2019,16.05.2019,GPC04190000217,16.58
Stockport MBC,Corporate and Support Services,Central Support Costs,COMPUTER NETWORK/INFORMATION SERVICES,Information and Communications Technology,Information Communication Technology  ,02.04.2019,16.05.2019,GPC04190000218,16.58
Stockport MBC,Corporate and Support Services,Central Support Costs,COMPUTER NETWORK/INFORMATION SERVICES,Information and Communications Technology,Information Communication Technology  ,02.04.2019,16.05.2019,GPC04190000219,16.58
Stockport MBC,Corporate and Support Services,Cultural & Related Services,BOOK STORES,Repairs and Maintenance,"Works - Construction, Repair & Maintenance  ",30.04.2019,16.05.2019,GPC04190000220,17.29
Stockport MBC,Corporate and Support Services,Cultural & Related Services,BOOK STORES,Library Equipment,Education Library Books ,29.04.2019,16.05.2019,GPC04190000221,12.00
Stockport MBC,Corporate and Support Services,Cultural & Related Services,DIRECT MARKETING-OTHER DIRECT MARKETERS/NOT ELSEW.,Library Equipment,Education Library Books ,09.04.2019,16.05.2019,GPC04190000222,17.99
Stockport MBC,Corporate and Support Services,Cultural & Related Services,"ORGANIZATIONS, MEMBERSHIP-NOT ELSEWHERE CLASSIFIED",Library Equipment,Education Library Books ,08.04.2019,16.05.2019,GPC04190000223,155.00
Stockport MBC,Services to People,Childrens & Educational Services,"GROCERY STORES, SUPERMARKETS",Catering Supplies,Catering Food & Beverages ,24.04.2019,16.05.2019,GPC04190000224,11.96
Stockport MBC,Services to People,Childrens & Educational Services,MISCELLANEOUS AND SPECIALTY RETAIL STORES,Office Expenses,Stationery    ,30.04.2019,16.05.2019,GPC04190000225,5.68
Stockport MBC,Services to People,Childrens & Educational Services,MISCELLANEOUS AND SPECIALTY RETAIL STORES,Office Expenses,Stationery    ,26.04.2019,16.05.2019,GPC04190000226,12.13
Stockport MBC,Services to People,Childrens & Educational Services,DIRECT MARKETING-OTHER DIRECT MARKETERS/NOT ELSEW.,Office Expenses,Stationery    ,26.04.2019,16.05.2019,GPC04190000227,18.39
Stockport MBC,Services to People,Childrens & Educational Services,MISCELLANEOUS AND SPECIALTY RETAIL STORES,Office Expenses,Stationery    ,25.04.2019,16.05.2019,GPC04190000228,6.80
Stockport MBC,Services to People,Childrens & Educational Services,MISCELLANEOUS AND SPECIALTY RETAIL STORES,Office Expenses,Stationery    ,25.04.2019,16.05.2019,GPC04190000229,3.98
Stockport MBC,Services to People,Childrens & Educational Services,AUTOMOBILE PARKING LOTS AND GARAGES,Travelling Expenses,Human Resources Travel & Subsistence ,20.04.2019,16.05.2019,GPC04190000230,1.40
Stockport MBC,Services to People,Childrens & Educational Services,DIRECT MARKETING-OTHER DIRECT MARKETERS/NOT ELSEW.,Office Expenses,Stationery    ,18.04.2019,16.05.2019,GPC04190000231,4.99
Stockport MBC,Services to People,Childrens & Educational Services,"GROCERY STORES, SUPERMARKETS",Publicity and Promotion,Arts & Leisure Services  ,17.04.2019,16.05.2019,GPC04190000232,79.00
Stockport MBC,Services to People,Childrens & Educational Services,"QUICK COPY,REPRODUCTION AND BLUEPRINTING SERVICES",Furniture and Equipment,Furniture & Soft Furnishings  ,19.03.2019,16.05.2019,GPC04190000233,53.04
Stockport MBC,Corporate and Support Services,Central Support Costs,ELECTRONIC SALES,Furniture and Equipment,Environmental Services Technical Equipment ,09.04.2019,16.05.2019,GPC04190000234,24.05
Stockport MBC,Corporate and Support Services,Central Support Costs,ELECTRONIC SALES,Furniture and Equipment,Environmental Services Technical Equipment ,02.04.2019,16.05.2019,GPC04190000235,28.09
Stockport MBC,Services to Place,Highways & Transport Services,PASSENGER RAILWAYS,Travelling Expenses,Human Resources Travel & Subsistence ,30.04.2019,16.05.2019,GPC04190000236,84.05
Stockport MBC,Corporate and Support Services,Central Support Costs,PASSENGER RAILWAYS,Travelling Expenses,Human Resources Travel & Subsistence ,29.04.2019,16.05.2019,GPC04190000237,155.00
Stockport MBC,Corporate and Support Services,Corporate & Democratic Core,PASSENGER RAILWAYS,Travelling Expenses,Human Resources Travel & Subsistence ,29.04.2019,16.05.2019,GPC04190000238,22.55
Stockport MBC,Corporate and Support Services,Central Support Costs,PASSENGER RAILWAYS,Travelling Expenses,Human Resources Travel & Subsistence ,29.04.2019,16.05.2019,GPC04190000239,299.60
Stockport MBC,Services to Place,Highways & Transport Services,PASSENGER RAILWAYS,Travelling Expenses,Human Resources Travel & Subsistence ,24.04.2019,16.05.2019,GPC04190000240,143.80
Stockport MBC,Services to Place,Central Support Costs,PASSENGER RAILWAYS,Travelling Expenses,Human Resources Travel & Subsistence ,24.04.2019,16.05.2019,GPC04190000241,310.60
Stockport MBC,Services to Place,Highways & Transport Services,PASSENGER RAILWAYS,Travelling Expenses,Human Resources Travel & Subsistence ,23.04.2019,16.05.2019,GPC04190000242,85.30
Stockport MBC,Services to Place,Highways & Transport Services,PASSENGER RAILWAYS,Travelling Expenses,Human Resources Travel & Subsistence ,23.04.2019,16.05.2019,GPC04190000243,13.95
Stockport MBC,Services to Place,Highways & Transport Services,PASSENGER RAILWAYS,Travelling Expenses,Human Resources Travel & Subsistence ,23.04.2019,16.05.2019,GPC04190000244,110.80
Stockport MBC,Services to Place,Cultural & Related Services,PASSENGER RAILWAYS,Travelling Expenses,Human Resources Travel & Subsistence ,23.04.2019,16.05.2019,GPC04190000245,183.50
Stockport MBC,Corporate and Support Services,Central Support Costs,PASSENGER RAILWAYS,Travelling Expenses,Human Resources Travel & Subsistence ,18.04.2019,16.05.2019,GPC04190000246,171.05
Stockport MBC,Corporate and Support Services,Central Support Costs,PASSENGER RAILWAYS,Travelling Expenses,Human Resources Travel & Subsistence ,09.04.2019,16.05.2019,GPC04190000247,55.40
Stockport MBC,Corporate and Support Services,Central Support Costs,PASSENGER RAILWAYS,Travelling Expenses,Human Resources Travel & Subsistence ,05.04.2019,16.05.2019,GPC04190000248,102.10
Stockport MBC,Corporate and Support Services,Central Support Costs,PASSENGER RAILWAYS,Travelling Expenses,Human Resources Travel & Subsistence ,05.04.2019,16.05.2019,GPC04190000249,76.50
Stockport MBC,Corporate and Support Services,Central Support Costs,PASSENGER RAILWAYS,Travelling Expenses,Human Resources Travel & Subsistence ,05.04.2019,16.05.2019,GPC04190000250,565.80
Stockport MBC,Corporate and Support Services,Central Support Costs,PASSENGER RAILWAYS,Travelling Expenses,Human Resources Travel & Subsistence ,04.04.2019,16.05.2019,GPC04190000251,43.15
Stockport MBC,Corporate and Support Services,Central Support Costs,PASSENGER RAILWAYS,Travelling Expenses,Human Resources Travel & Subsistence ,04.04.2019,16.05.2019,GPC04190000252,326.70
Stockport MBC,Services to People,Adult Social Care,DISCOUNT STORES,Catering Supplies,Catering Food & Beverages ,29.04.2019,16.05.2019,GPC04190000253,66.96
Stockport MBC,Services to People,Adult Social Care,"GROCERY STORES, SUPERMARKETS",Catering Supplies,Catering Food & Beverages ,23.04.2019,16.05.2019,GPC04190000254,31.44
Stockport MBC,Services to People,Adult Social Care,"GROCERY STORES, SUPERMARKETS",Catering Supplies,Catering Food & Beverages ,09.04.2019,16.05.2019,GPC04190000255,3.50
Stockport MBC,Services to People,Adult Social Care,DISCOUNT STORES,Catering Supplies,Catering Food & Beverages ,08.04.2019,16.05.2019,GPC04190000256,26.67
